bitfinex/quotes_SOLUSD_20251009
["timestamp","ask_amount","ask_price","bid_price","bid_amount"]
[1760007073633,4.49883949,222.28,222.27,0.65]
[1760007074442,4.49849493,222.3,222.27,0.65]
[1760007074621,5.86567895,222.3,222.24,0.1]
[1760007074815,5.86567895,222.3,222.25,0.65]
[1760007076737,4.4982232,222.31,222.25,0.65]
[1760007076914,5.86540722,222.31,222.25,0.65]
[1760007077116,5.86540722,222.31,222.25,2.55168006]
[1760007077331,5.86540722,222.31,222.26,0.65]
[1760007077636,5.86540722,222.31,222.27,0.65]
[1760007077857,1.36718402,222.29,222.25,1.90168006]
[1760007078044,1.36718402,222.29,222.25,0.65]
[1760007078823,4.4988303,222.28,222.26,0.65]
[1760007079017,4.4988303,222.28,222.27,0.65]
[1760007080319,1.36718402,222.31,222.27,0.65]
[1760007080520,1.36718402,222.32,222.28,0.65]
[1760007080731,1.36718402,222.32,222.26,2.10168006]
[1760007081047,1.36718402,222.32,222.28,0.65]
[1760007081210,2.08718402,222.32,222.28,0.65]
[1760007082138,2.08718402,222.32,222.26,2.10168006]
[1760007082139,4.4982232,222.31,222.29,0.65]
[1760007082622,3.73957104,222.34,222.29,0.65]
[1760007082819,1.36718402,222.32,222.27,0.65]
[1760007083132,2.08718402,222.32,222.28,0.65]
[1760007084044,4.4982232,222.31,222.28,0.65]
[1760007084522,5.2182232,222.31,222.26,2.75168006]
[1760007084717,6.58540722,222.31,222.27,0.65]
[1760007087230,1.36718402,222.29,222.25,31.74]
[1760007087428,2.06718402,222.29,222.25,32.4]
[1760007087739,1.36718402,222.29,222.26,0.66]
[1760007089949,1.36718402,222.27,222.24,0.1]
[1760007090241,1.36718402,222.27,222.24,0.76]
[1760007090425,2.06718402,222.27,222.24,0.1]
[1760007091046,3.02643977,222.28,222.24,0.76]
[1760007091224,3.02643977,222.28,222.24,0.1]
[1760007091225,4.39362379,222.28,222.24,0.1]
[1760007091427,6.56617537,222.28,222.24,0.76]
[1760007091947,5.19899135,222.28,222.24,0.1]
[1760007092154,0.750705,222.26,222.24,0.1]
[1760007093027,0.750705,222.26,222.24,0.76]
[1760007093926,0.750705,222.26,222.24,0.1]
[1760007095247,5.94995059,222.26,222.24,0.1]
[1760007095943,5.24995059,222.26,222.24,0.1]
[1760007096129,0.750705,222.26,222.24,0.1]
[1760007096459,0.750705,222.26,222.25,0.66]
[1760007096837,0.750705,222.26,222.24,0.1]
[1760007097237,0.750705,222.26,222.25,0.66]
[1760007102361,0.750705,222.26,222.25,5.15943757]
[1760007108542,0.750705,222.26,222.25,7.29731939]
[1760007108744,0.750705,222.26,222.25,6.63731939]
[1760007109065,0.750705,222.26,222.25,4.49943757]
[1760007110349,0.750705,222.26,222.25,7.33731939]
[1760007115058,1.420705,222.26,222.24,0.1]
[1760007115265,1.420705,222.26,222.25,31.72]
[1760007116265,8.05782195,222.26,222.25,31.72]
[1760007119065,8.05782195,222.26,222.24,0.1]
[1760007119267,8.94898981,222.26,222.24,0.1]
[1760007119467,8.05782195,222.26,222.24,0.1]
[1760007119674,11.08687163,222.26,222.24,0.1]
[1760007119864,8.05782195,222.26,222.24,0.1]
[1760007120077,11.08687163,222.26,222.24,0.1]
[1760007120391,8.05782195,222.26,222.24,0.1]
[1760007120588,11.08687163,222.26,222.24,0.1]
[1760007120882,8.05782195,222.26,222.24,0.1]
[1760007121082,11.08687163,222.26,222.24,0.1]
[1760007121386,3.02904968,222.25,222.24,0.1]
[1760007121771,3.70904968,222.25,222.24,0.1]
[1760007122472,8.20848725,222.25,222.24,0.1]
[1760007123372,5.17943757,222.25,222.24,0.1]
[1760007123883,10.34636907,222.25,222.23,0.1]
[1760007124060,3.02904968,222.24,222.23,0.1]
[1760007124260,7.5286897,222.24,222.23,0.1]
[1760007124560,8.2086897,222.24,222.23,0.1]
[1760007125471,7.31752184,222.24,222.23,0.1]
[1760007125782,10.34657152,222.24,222.23,0.1]
[1760007125961,7.31752184,222.24,222.23,0.1]
[1760007126584,10.34657152,222.24,222.23,0.1]
[1760007127487,7.31752184,222.24,222.23,0.1]
[1760007127793,10.34657152,222.24,222.23,0.1]
[1760007127972,7.31752184,222.24,222.23,0.1]
[1760007128180,3.02904968,222.25,222.23,0.1]
[1760007128376,7.38801973,222.26,222.23,0.1]
[1760007128377,0.750705,222.26,222.23,0.77]
[1760007128578,0.750705,222.26,222.24,0.67]
[1760007129689,0.750705,222.26,222.23,0.1]
[1760007129690,0.68,222.25,222.23,0.1]
[1760007129996,2.13788182,222.24,222.23,0.1]
[1760007130377,7.31752184,222.24,222.23,0.1]
[1760007132608,7.51879276,222.25,222.23,0.1]
[1760007132779,4.49945781,222.25,222.23,0.1]
[1760007136393,0.750705,222.26,222.24,0.67]
[1760007136595,0.750705,222.26,222.25,0.67]
[1760007136911,0.750705,222.26,222.25,32.39]
[1760007138213,0.750705,222.26,222.25,36.88943757]
[1760007139394,0.750705,222.26,222.25,39.02731939]
[1760007140396,0.750705,222.26,222.25,36.88943757]
[1760007142697,0.750705,222.26,222.25,31.72]
[1760007142895,0.750705,222.26,222.25,32.39]
[1760007144924,0.750705,222.26,222.25,36.88943757]
[1760007146109,1.460705,222.26,222.23,0.1]
[1760007146405,1.460705,222.26,222.24,31.72]
[1760007146607,1.460705,222.26,222.23,0.1]
[1760007146608,0.71,222.25,222.23,0.1]
[1760007146914,6.63752184,222.24,222.23,0.1]
[1760007147093,7.34752184,222.24,222.23,0.1]
[1760007151604,5.20964002,222.24,222.23,0.1]
[1760007151796,7.34752184,222.24,222.23,0.1]
[1760007157000,5.20964002,222.24,222.23,0.1]
[1760007157207,7.34752184,222.24,222.23,0.1]
[1760007158906,9.48540366,222.24,222.23,1e-08]
[1760007159124,27.53598062,222.24,222.19,0.1]
[1760007159420,4.27576364,222.2,222.19,0.1]
[1760007159810,2.84788182,222.2,222.19,0.1]
[1760007160200,7.34833186,222.2,222.19,0.1]
[1760007162328,12.06168859,222.2,222.19,0.1]
[1760007164810,15.07685337,222.2,222.19,0.1]
[1760007167410,15.07685337,222.2,222.19,1e-08]
[1760007167811,1.37024771,222.17,222.16,1e-08]
[1760007168013,33.09024771,222.17,222.16,1e-08]
[1760007168219,36.78541249,222.17,222.16,1e-08]
[1760007169029,5.06541249,222.17,222.16,1e-08]
[1760007169230,38.27130545,222.17,222.16,1e-08]
[1760007169433,41.28647023,222.17,222.16,1e-08]
[1760007172108,39.91622252,222.17,222.16,1e-08]
[1760007172310,41.28647023,222.17,222.16,1e-08]
[1760007174127,9.56647023,222.17,222.16,1e-08]
[1760007174321,38.27130545,222.17,222.16,1e-08]
[1760007174525,4.50105774,222.17,222.16,0.71000001]
[1760007174725,5.87130545,222.17,222.16,0.71000001]
[1760007175830,4.50105774,222.17,222.16,0.71000001]
[1760007176212,4.50085516,222.18,222.16,0.71000001]
[1760007176411,4.50085516,222.18,222.17,0.67]
[1760007176826,36.91085516,222.18,222.16,1e-08]
[1760007177133,1.37024771,222.17,222.16,1e-08]
[1760007178030,36.22085516,222.18,222.16,1e-08]
[1760007178429,36.91085516,222.18,222.16,1e-08]
[1760007179841,36.22085516,222.18,222.16,1e-08]
[1760007180144,0.69,222.17,222.16,1e-08]
[1760007180452,2.06024771,222.17,222.16,1e-08]
[1760007180933,5.06322697,222.17,222.16,1e-08]
[1760007181315,2.06024771,222.17,222.16,1e-08]
[1760007181818,9.56403185,222.17,222.16,1e-08]
[1760007182039,7.50378414,222.17,222.16,1e-08]
[1760007182345,38.28130545,222.17,222.16,1e-08]
[1760007182513,41.28403185,222.17,222.16,1e-08]
[1760007184321,63.32196495,222.17,222.11,0.1]
[1760007184522,3.0027264,222.16,222.11,0.1]
[1760007184733,1.37024771,222.12,222.11,0.1]
[1760007184942,1.37024771,222.12,222.11,0.77]
[1760007185133,1.37024771,222.12,222.11,0.1]
[1760007186328,38.28231866,222.12,222.11,1e-08]
[1760007186517,5.87231866,222.12,222.11,0.67000001]
[1760007186921,5.87231866,222.12,222.11,1e-08]
[1760007189046,5.87231866,222.12,222.11,0.67000001]
[1760007189548,4.50190111,222.13,222.11,0.67000001]
[1760007189725,1.37024771,222.15,222.11,0.67000001]
[1760007190740,5.87190832,222.15,222.11,0.67000001]
[1760007191144,4.50166061,222.15,222.11,0.67000001]
[1760007191938,11.25149321,222.2,222.11,2.04024772]
[1760007192140,11.25149321,222.2,222.12,0.67]
[1760007192336,12.62174092,222.2,222.12,0.67]
[1760007192538,4.50024751,222.21,222.15,1.37024771]
[1760007192739,3.01626002,222.22,222.16,0.67]
[1760007192933,1.37024771,222.23,222.16,0.67]
[1760007193247,4.50007834,222.22,222.16,0.67]
[1760007193635,4.50007834,222.22,222.16,5.17123095]
[1760007193838,4.49990568,222.23,222.17,2.04024771]
[1760007194036,4.49961966,222.25,222.19,1.37024771]
[1760007194245,4.49961966,222.25,222.2,0.67]
[1760007194751,6.62023539,222.26,222.2,0.67]
[1760007195639,1.37024771,222.22,222.18,0.67]
[1760007195849,1.37024771,222.22,222.19,0.67]
[1760007196357,1.37024771,222.2,222.16,0.67]
[1760007196560,1.37024771,222.18,222.14,0.67]
[1760007196736,1.37024771,222.16,222.14,0.67]
[1760007197138,5.87155125,222.16,222.11,0.67000001]
[1760007197338,1.37024771,222.14,222.11,1e-08]
[1760007197560,1.37024771,222.12,222.11,1e-08]
[1760007198063,1.37024771,222.13,222.11,1e-08]
[1760007199041,4.50207095,222.12,222.11,1e-08]
[1760007199954,1.37024771,222.13,222.11,0.67000001]
[1760007200148,14.2648975,222.19,222.11,0.67000001]
[1760007200463,5.87110287,222.18,222.11,0.67000001]
[1760007202065,4.50085516,222.18,222.11,5.17225639]
[1760007202238,4.50085516,222.18,222.12,0.67]
[1760007202437,4.50085516,222.18,222.12,2.04024771]
[1760007202638,4.50085516,222.18,222.13,0.67]
[1760007202842,4.50064055,222.2,222.13,0.67]
[1760007203060,4.50064055,222.2,222.13,5.17176623]
[1760007203266,4.50064055,222.2,222.14,0.67]
[1760007204138,4.50064055,222.2,222.11,1e-08]
[1760007204139,1.37024771,222.17,222.11,1e-08]
[1760007204338,1.37024771,222.15,222.11,1e-08]
[1760007204562,3.70510076,222.19,222.12,0.67]
[1760007204765,1.37024771,222.18,222.12,0.67]
[1760007205145,4.50105774,222.17,222.12,0.67]
[1760007205352,4.50085688,222.18,222.12,0.67]
[1760007205556,3.01510076,222.19,222.12,0.67]
[1760007205755,4.50067342,222.19,222.12,0.67]
[1760007205946,1.37024771,222.18,222.12,0.67]
[1760007206154,2.08024771,222.18,222.12,0.67]
[1760007206550,5.09534847,222.18,222.12,0.67]
[1760007206964,3.72510076,222.18,222.12,0.67]
[1760007207171,5.87130545,222.17,222.12,0.67]
[1760007207673,5.87130545,222.17,222.13,0.66]
[1760007208171,0.71,222.16,222.11,1e-08]
[1760007208550,0.71,222.16,222.11,0.66000001]
[1760007208960,5.87130545,222.17,222.12,0.66]
[1760007209161,5.87130545,222.17,222.13,0.66]
[1760007209971,3.01510076,222.18,222.14,0.66]
[1760007210170,2.08024771,222.19,222.14,0.66]
[1760007210956,4.50086853,222.18,222.14,0.66]
[1760007211676,5.21086853,222.18,222.14,0.66]
[1760007212156,1.37024771,222.2,222.15,0.66]
[1760007212467,2.08024771,222.2,222.15,0.66]
[1760007212655,0.71,222.22,222.16,0.66]
[1760007212860,1.37024771,222.21,222.16,0.66]
[1760007213168,5.21045004,222.2,222.14,5.16159346]
[1760007213367,0.71,222.2,222.14,5.16159346]
[1760007213576,4.50032626,222.21,222.15,0.66]
[1760007213752,5.21032626,222.21,222.15,0.66]
[1760007215572,4.49964122,222.24,222.16,33.09024771]
[1760007215761,0.71,222.23,222.16,33.09024771]
[1760007215952,1.37024771,222.22,222.16,31.72]
[1760007216151,0.71,222.21,222.15,4.50143284]
[1760007216456,0.71,222.21,222.16,31.72]
[1760007216656,0.71,222.21,222.16,32.38]
[1760007217063,0.71,222.23,222.17,0.66]
[1760007217264,2.08024771,222.23,222.17,0.66]
[1760007218567,2.08024771,222.23,222.17,32.38]
[1760007219175,6.58016838,222.23,222.17,32.38]
[1760007219571,5.20992067,222.23,222.17,32.38]
[1760007219954,6.58016838,222.23,222.17,32.38]
[1760007220885,3.01583056,222.25,222.18,0.66]
[1760007220886,4.49964297,222.24,222.18,0.66]
[1760007221105,5.86989068,222.24,222.18,0.66]
[1760007221261,0.71,222.23,222.17,31.72]
[1760007221461,1.37024771,222.22,222.17,31.72]
[1760007221681,1.37024771,222.22,222.17,32.38]
[1760007221872,15.74874304,222.24,222.18,0.66]
[1760007221873,5.86989068,222.24,222.18,0.66]
[1760007222072,5.20964297,222.24,222.18,5.16076595]
[1760007223668,2.13913909,222.25,222.19,0.66]
[1760007223869,3.76526853,222.26,222.19,0.66]
[1760007223870,0.750705,222.26,222.19,2.79913909]
[1760007224074,0.750705,222.26,222.21,2.13913909]
[1760007224787,0.750705,222.26,222.22,0.68]
[1760007224993,0.750705,222.26,222.23,31.72]
[1760007225288,1.410705,222.26,222.23,31.72]
[1760007225579,0.750705,222.26,222.23,32.4]
[1760007225763,0.750705,222.26,222.23,31.72]
[1760007226382,1.410705,222.26,222.23,31.72]
[1760007226884,2.79913909,222.25,222.23,31.72]
[1760007227084,5.24994675,222.26,222.23,31.72]
[1760007227382,2.13913909,222.24,222.18,4.5006606]
[1760007227578,2.13913909,222.23,222.17,0.68]
[1760007227765,2.13913909,222.23,222.19,31.72]
[1760007227965,2.13913909,222.23,222.19,32.4]
[1760007229470,0.66,222.24,222.19,31.72]
[1760007229674,2.13913909,222.24,222.2,0.68]
[1760007230087,1.410705,222.26,222.21,0.68]
[1760007230382,2.79913909,222.25,222.19,36.90057331]
[1760007230586,7.29864204,222.25,222.19,36.90057331]
[1760007230999,5.2499447,222.26,222.2,0.68]
[1760007231180,0.750705,222.26,222.2,2.81913909]
[1760007231367,0.750705,222.26,222.21,0.68]
[1760007231567,0.750705,222.26,222.23,2.13913909]
[1760007231868,0.750705,222.26,222.24,32.38]
[1760007232070,0.750705,222.26,222.25,0.68]
[1760007233485,0.750705,222.26,222.25,31.7]
[1760007240674,0.750705,222.26,222.25,32.37]
[1760007241080,0.750705,222.26,222.25,36.86943757]
[1760007241267,0.750705,222.26,222.25,32.37]
[1760007243473,0.750705,222.26,222.25,36.86943757]
[1760007243789,0.750705,222.26,222.25,39.00857666]
[1760007248403,0.750705,222.26,222.25,7.30857666]
[1760007248900,0.750705,222.26,222.25,4.49943757]
[1760007249104,0.750705,222.26,222.25,31.7]
[1760007249599,0.750705,222.26,222.25,39.00857666]
[1760007250510,0.750705,222.26,222.25,41.14771575]
[1760007253915,0.750705,222.26,222.25,121.94771575]
[1760007254711,0.68,222.37,222.33,2.13913909]
[1760007254887,0.68,222.36,222.34,33.81913909]
[1760007255708,4.69643163,222.4,222.35,2.13913909]
[1760007256010,0.68,222.39,222.36,33.81913909]
[1760007256209,0.68,222.38,222.36,33.81913909]
[1760007256389,0.68,222.37,222.36,33.81913909]
[1760007256589,0.68,222.37,222.34,2.13913909]
[1760007256796,0.68,222.36,222.35,31.68]
[1760007259986,0.68,222.39,222.35,38.31655307]
[1760007260307,4.69660337,222.4,222.35,38.31655307]
[1760007260308,0.68,222.38,222.35,38.31655307]
[1760007261412,0.68,222.38,222.36,2.13913909]
[1760007261612,0.68,222.38,222.37,31.68]
[1760007262591,0.2,222.4,222.37,38.31613177]
[1760007262785,0.2,222.4,222.39,2.13913909]
[1760007263110,0.2,222.4,222.39,33.81913909]
[1760007263284,0.2,222.4,222.39,34.48913909]
[1760007264387,0.2,222.4,222.39,36.84660506]
[1760007264802,0.2,222.4,222.39,38.98574415]
[1760007265885,0.2,222.4,222.39,38.31574415]
[1760007266810,0.2,222.4,222.37,6.29706362]
[1760007267107,0.2,222.4,222.39,2.13913909]
[1760007268812,0.2,222.4,222.39,6.63574415]
[1760007272212,0.2,222.4,222.39,7.33574415]
[1760007273299,0.2,222.4,222.39,6.63574415]
[1760007278799,0.2,222.4,222.39,38.29574415]
[1760007279334,0.2,222.4,222.39,38.99574415]
[1760007283101,1e-08,222.4,222.39,41.13488324]
[1760007283307,0.2,222.42,222.39,52.82605639]
[1760007283506,0.2,222.42,222.41,8.77447889]
[1760007283707,0.2,222.42,222.41,40.43447889]
[1760007283908,0.2,222.42,222.41,41.13447889]
[1760007284137,0.2,222.42,222.41,43.68159276]
[1760007284425,0.2,222.42,222.41,12.02159276]
[1760007284633,0.2,222.42,222.41,43.68159276]
[1760007285632,0.2,222.42,222.41,31.66]
[1760007285633,0.88,222.42,222.41,31.66]
[1760007285829,0.88,222.42,222.31,12.77890231]
[1760007285830,0.88,222.42,222.39,1.36507841]
[1760007286013,0.68,222.41,222.4,31.66]
[1760007287512,0.68,222.41,222.4,33.02507841]
[1760007287921,0.68,222.41,222.4,31.66]
[1760007290116,0.68,222.41,222.4,33.02507841]
[1760007291212,0.2,222.42,222.4,37.52145644]
[1760007291428,0.2,222.42,222.41,1.36507841]
[1760007292040,0.88,222.42,222.41,1.36507841]
[1760007292658,0.2,222.42,222.41,1.36507841]
[1760007293655,0.88,222.42,222.33,15.74236494]
[1760007293962,0.88,222.42,222.4,1.36507841]
[1760007294159,0.88,222.42,222.41,31.66]
[1760007296127,0.2,222.42,222.41,31.66]
[1760007296329,0.2,222.42,222.41,33.02507841]
[1760007297159,0.2,222.42,222.41,37.52127912]
[1760007297842,0.2,222.42,222.41,38.24127912]
[1760007300153,0.2,222.42,222.41,36.87620071]
[1760007300335,0.2,222.42,222.41,31.66]
[1760007300536,0.88,222.42,222.4,4.49638335]
[1760007300738,0.88,222.42,222.41,31.66]
[1760007301131,0.88,222.42,222.41,33.02507841]
[1760007302032,0.2,222.42,222.41,37.52127912]
[1760007302233,0.2,222.42,222.41,38.24127912]
[1760007303535,0.2,222.42,222.41,37.52127912]
[1760007303832,0.88,222.42,222.41,31.66]
[1760007305235,0.2,222.42,222.41,33.02507841]
[1760007305567,0.88,222.42,222.41,33.02507841]
[1760007306054,0.2,222.42,222.41,33.02507841]
[1760007306664,0.88,222.42,222.41,33.02507841]
[1760007306835,0.88,222.42,222.39,5.86162869]
[1760007307040,0.88,222.42,222.4,33.02507841]
[1760007307860,0.2,222.42,222.4,37.52147406]
[1760007308067,0.2,222.42,222.41,0.72]
[1760007309441,0.2,222.42,222.41,5.21620071]
[1760007309765,0.2,222.42,222.41,33.00507841]
[1760007310147,0.2,222.42,222.41,31.64]
[1760007310351,0.88,222.42,222.41,1.36507841]
[1760007310609,0.88,222.42,222.41,33.00507841]
[1760007310879,0.88,222.42,222.41,31.64]
[1760007311049,0.2,222.42,222.41,31.64]
[1760007312860,0.2,222.42,222.41,36.13620071]
[1760007313105,5.37601767,222.42,222.32,0.72]
[1760007313242,0.68,222.41,222.37,31.64]
[1760007313443,0.68,222.4,222.29,3.74723498]
[1760007313660,5.17660506,222.39,222.31,1.36507841]
[1760007313868,0.68,222.38,222.32,31.64]
[1760007314259,0.68,222.37,222.32,31.64]
[1760007314473,4.49660506,222.39,222.32,31.64]
[1760007314474,0.68,222.36,222.32,31.64]
[1760007314871,0.68,222.36,222.33,1.36507841]
[1760007315083,0.68,222.36,222.34,31.64]
[1760007315275,4.49641426,222.4,222.34,31.64]
[1760007315475,0.68,222.38,222.34,31.64]
[1760007315686,0.68,222.37,222.34,31.64]
[1760007316393,0.68,222.37,222.34,33.00507841]
[1760007317467,0.68,222.39,222.34,37.5026857]
[1760007317781,0.68,222.38,222.34,33.00507841]
[1760007317966,0.68,222.37,222.34,31.64]
[1760007318171,0.68,222.37,222.34,33.00507841]
[1760007318998,4.59231339,222.42,222.36,1.36507841]
[1760007318999,0.88,222.42,222.36,1.36507841]
[1760007319196,0.88,222.42,222.38,1.36507841]
[1760007319380,0.88,222.42,222.39,31.66]
[1760007320203,5.37618208,222.42,222.39,31.66]
[1760007321396,0.2,222.42,222.41,1.36507841]
[1760007321898,0.88,222.42,222.41,1.36507841]
[1760007322100,0.88,222.42,222.39,33.02507841]
[1760007322978,0.2,222.42,222.39,33.74507841]
[1760007323186,0.2,222.42,222.41,1.36507841]
[1760007324796,0.2,222.42,222.4,1.36507841]
[1760007324980,0.88,222.42,222.4,1.36507841]
[1760007325380,0.88,222.42,222.41,31.66]
[1760007325775,0.2,222.42,222.41,31.66]
[1760007326590,0.89,222.42,222.41,31.66]
[1760007326793,0.2,222.42,222.41,31.66]
[1760007329904,0.89,222.42,222.41,31.66]
[1760007330086,5.38599856,222.42,222.38,80.8]
[1760007330286,5.18624491,222.41,222.39,31.64]
[1760007330599,0.69,222.4,222.39,31.64]
[1760007331300,0.69,222.4,222.38,80.8]
[1760007331511,0.69,222.39,222.38,80.8]
[1760007331705,0.69,222.39,222.38,31.64]
[1760007334921,5.18660506,222.39,222.38,31.64]
[1760007335115,0.69,222.39,222.38,31.64]
[1760007335427,4.49643073,222.4,222.38,31.64]
[1760007335649,0.69,222.4,222.38,31.64]
[1760007336212,5.18649336,222.4,222.38,31.64]
[1760007336386,0.69,222.39,222.38,31.64]
[1760007338206,5.18660506,222.39,222.38,31.64]
[1760007338906,4.49660506,222.39,222.38,31.64]
[1760007339709,4.49640287,222.4,222.38,31.64]
[1760007339911,5.18640287,222.4,222.38,31.64]
[1760007340115,0.69,222.39,222.38,31.64]
[1760007340435,0.69,222.39,222.34,2.03507841]
[1760007340619,0.69,222.38,222.35,31.64]
[1760007341208,4.49640287,222.4,222.32,2.03507841]
[1760007341409,0.69,222.37,222.33,31.64]
[1760007341622,0.69,222.37,222.33,32.31]
[1760007342010,5.18660506,222.39,222.33,32.31]
[1760007342412,8.21199447,222.39,222.33,32.31]
[1760007342612,8.21199447,222.39,222.33,36.80779102]
[1760007342813,8.21199447,222.39,222.28,22.48783549]
[1760007342814,0.69,222.38,222.3,0.67]
[1760007343020,0.69,222.38,222.31,31.64]
[1760007343225,0.69,222.38,222.31,33.00507841]
[1760007343425,4.49660506,222.39,222.32,0.67]
[1760007343825,15.73811771,222.39,222.32,0.67]
[1760007344015,3.02538941,222.38,222.32,0.67]
[1760007344524,16.42811771,222.39,222.32,0.67]
[1760007344832,5.18660506,222.39,222.32,5.16795961]
[1760007345017,4.49660506,222.39,222.33,2.01507841]
[1760007345327,3.7145157,222.41,222.34,32.29]
[1760007345533,0.69,222.4,222.34,32.29]
[1760007346713,0.2,222.42,222.39,2.13600295]
[1760007346910,0.2,222.42,222.4,32.29]
[1760007347933,0.2,222.42,222.4,31.64]
[1760007348240,0.2,222.42,222.41,0.65]
[1760007349933,0.2,222.42,222.4,31.64]
[1760007350117,0.2,222.42,222.4,32.29]
[1760007350312,0.2,222.42,222.4,0.65]
[1760007350516,0.2,222.42,222.41,31.64]
[1760007353316,0.2,222.42,222.41,32.29]
[1760007353539,0.2,222.42,222.41,34.42600295]
[1760007353739,0.2,222.42,222.41,33.77600295]
[1760007354053,0.2,222.42,222.39,0.65]
[1760007354219,0.2,222.42,222.4,31.64]
[1760007355650,0.2,222.42,222.4,32.32]
[1760007357430,4.69600575,222.42,222.4,31.64]
[1760007357614,5.39600575,222.42,222.4,31.64]
[1760007357940,5.39600575,222.42,222.41,31.64]
[1760007358922,0.2,222.42,222.41,31.64]
[1760007360135,4.69610416,222.42,222.38,0.68]
[1760007360332,5.39610416,222.42,222.39,31.64]
[1760007360534,2.13600295,222.4,222.31,0.68]
[1760007360725,0.7,222.39,222.32,32.32]
[1760007360930,0.7,222.39,222.33,0.68]
[1760007361150,0.7,222.39,222.33,2.81600295]
[1760007362325,5.1966696,222.39,222.33,7.31369655]
[1760007363566,5.1966696,222.39,222.34,0.68]
[1760007363730,0.7,222.38,222.35,31.64]
[1760007364458,3.02659827,222.41,222.35,31.64]
[1760007364625,0.2,222.42,222.37,2.13600295]
[1760007364940,0.2,222.42,222.38,32.32]
[1760007365149,0.2,222.42,222.39,0.68]
[1760007365542,4.49622117,222.41,222.39,0.68]
[1760007365743,0.2,222.42,222.39,0.68]
[1760007365943,0.2,222.42,222.4,0.68]
[1760007366167,0.2,222.42,222.41,31.64]
[1760007367026,0.2,222.42,222.41,32.32]
[1760007367236,0.2,222.42,222.41,34.45600295]
[1760007367468,0.2,222.42,222.41,31.64]
[1760007370053,10.55859978,222.42,222.3,0.68]
[1760007370356,2.13600295,222.39,222.31,33.77600295]
[1760007370679,3.02659827,222.4,222.35,2.13600295]
[1760007370833,3.02659827,222.41,222.36,32.32]
[1760007371032,7.52284943,222.41,222.37,0.68]
[1760007371252,7.52284943,222.41,222.38,0.68]
[1760007371433,7.52284943,222.41,222.39,31.64]
[1760007371755,8.22284943,222.41,222.39,31.64]
[1760007371938,7.52284943,222.41,222.39,31.64]
[1760007374455,7.52284943,222.41,222.36,2.81600295]
[1760007374660,0.7,222.4,222.34,2.13600295]
[1760007374962,0.7,222.4,222.37,31.64]
[1760007375651,5.1964301,222.4,222.37,31.64]
[1760007376249,4.4964301,222.4,222.37,31.64]
[1760007376451,4.4964301,222.4,222.37,32.32]
[1760007377645,4.4964301,222.4,222.37,31.64]
[1760007377968,3.7268337,222.39,222.38,31.64]
[1760007379668,8.22343876,222.39,222.38,31.64]
[1760007379842,21.60095436,222.39,222.3,2.81600295]
[1760007380038,2.13600295,222.37,222.31,31.64]
[1760007380362,5.86283665,222.37,222.3,7.31438965]
[1760007380544,2.83600295,222.37,222.32,31.64]
[1760007380737,0.7,222.36,222.32,31.64]
[1760007380945,0.7,222.35,222.3,0.68]
[1760007381153,2.13600295,222.37,222.31,31.64]
[1760007381154,0.7,222.34,222.31,31.64]
[1760007381876,4.49781855,222.33,222.31,31.64]
[1760007382172,4.49781855,222.33,222.29,0.68]
[1760007382462,5.19781855,222.33,222.3,31.64]
[1760007382669,5.19781855,222.33,222.27,6.63499713]
[1760007382871,5.19781855,222.33,222.28,31.64]